bitfinex-derivatives/quotes_ETHF0:USTF0_20240913
["timestamp","ask_amount","ask_price","bid_price","bid_amount"]
[1726241922835,1.39749,2400.1,2399.5,0.41669]
[1726241923029,1.39749,2400.1,2399.4,3.2078]
[1726241923030,4.1887,2400.1,2399.4,3.2078]
[1726241923226,1.39748,2400.1,2399.5,0.41667]
[1726241923428,0.9809,2400.1,2399.5,0.41668]
[1726241923638,4.1887,2400.1,2399.5,0.41668]
[1726241923836,4.1887,2400.1,2399.4,3.2078]
[1726241924250,0.9809,2400.1,2399.4,3.2078]
[1726241924432,4.1672,2400.0,2399.2,3.2078]
[1726241924641,6.9809,2400.1,2398.6,3.2078]
[1726241924642,4.49,2399.3,2398.6,3.2078]
[1726241924935,4.49,2399.3,2399.1,0.41675]
[1726241925233,4.49,2399.3,2398.4,1.0422]
[1726241925234,0.41678,2399.0,2398.4,0.41687]
[1726241925433,0.41678,2399.0,2397.7,3.41558885]
[1726241925434,4.49,2399.0,2397.7,3.41558885]
[1726241925630,4.49,2399.0,2398.6,0.41683]
[1726241925827,4.49,2399.0,2398.7,0.41682]
[1726241926033,4.49,2399.0,2398.0,11.83227422]
[1726241926239,3.2078,2398.7,2398.3,0.41688]
[1726241926536,3.2078,2398.7,2398.2,0.41691]
[1726241926838,3.2078,2398.7,2398.1,8.62447422]
[1726241927230,3.2078,2398.7,2397.6,1.04255]
[1726241927231,3.2078,2398.4,2397.6,1.04255]
[1726241927432,7.6978,2398.7,2397.5,4.2354]
[1726241927632,8.11463,2398.7,2397.8,8.61026747]
[1726241927838,3.2078,2398.4,2397.6,8.61026747]
[1726241928134,3.2078,2398.4,2397.9,8.61026747]
[1726241928337,3.2078,2398.3,2398.1,0.41693]
[1726241928539,3.2078,2398.3,2397.9,3.2078]
[1726241928731,7.6978,2398.7,2397.9,3.2078]
[1726241929040,3.2078,2398.3,2398.0,0.41694]
[1726241929339,3.2078,2398.4,2397.9,3.2078]
[1726241929732,3.2078,2398.4,2398.0,0.41694]
[1726241929931,3.2078,2398.4,2398.1,0.41692]
[1726241930129,3.2078,2398.4,2398.3,0.41689]
[1726241930334,1.029,2399.2,2398.8,0.4168]
[1726241930631,1.45908,2398.4,2398.3,8.69750738]
[1726241930834,0.41694,2398.1,2397.2,3.2078]
[1726241931029,4.49,2397.7,2397.5,0.41703]
[1726241931236,4.49,2397.7,2397.6,0.41702]
[1726241931438,4.49,2397.7,2397.2,3.2078]
[1726241931833,4.49,2397.7,2397.2,0.41707]
[1726241931834,4.90701,2397.7,2397.2,0.41707]
[1726241932040,4.90701,2397.7,2396.9,3.2078]
[1726241932041,0.41702,2397.6,2396.9,3.2078]
[1726241932345,0.41702,2397.6,2395.7,0.212]
[1726241932346,3.2078,2396.5,2395.7,0.212]
[1726241932638,3.2078,2396.5,2394.2,0.213]
[1726241932639,4.49,2395.9,2395.5,3.2078]
[1726241932937,4.49,2395.9,2395.8,3.2078]
[1726241933440,3.2078,2396.1,2395.8,3.2078]
[1726241933640,3.2078,2396.1,2396.0,3.2078]
[1726241933842,4.49,2396.2,2396.0,3.2078]
[1726241934145,4.49,2396.2,2396.1,3.62508]
[1726241934643,3.2078,2396.5,2396.3,0.41723]
[1726241934842,3.62501,2396.5,2396.2,3.2078]
[1726241935138,3.62501,2396.5,2395.4,3.2078]
[1726241935139,9.2078,2396.5,2395.9,3.2078]
[1726241935342,4.49,2396.1,2395.8,3.2078]
[1726241935643,3.2078,2396.2,2395.5,3.2078]
[1726241935936,7.6978,2396.1,2395.2,1.04359]
[1726241936133,7.6978,2396.1,2395.9,0.41731]
[1726241936335,7.6978,2396.1,2395.9,0.4173]
[1726241936733,3.2078,2396.4,2395.5,3.2078]
[1726241937134,2.07408,2396.9,2395.5,8.82723345]
[1726241937135,7.6978,2396.0,2395.5,8.82723345]
[1726241937340,7.6978,2396.0,2395.6,0.41736]
[1726241937529,4.1736,2395.9,2395.4,3.2078]
[1726241937731,7.6978,2396.0,2395.9,0.41731]
[1726241938141,7.3814,2396.0,2395.4,3.2078]
[1726241938342,3.2078,2396.0,2395.2,1.0481]
[1726241938543,3.2078,2396.0,2395.8,0.41732]
[1726241938740,3.2078,2396.0,2395.4,3.2078]
[1726241939233,3.2078,2396.0,2393.2,3.2078]
[1726241939234,17.9912,2394.0,2393.2,3.2078]
[1726241939438,3.2078,2394.5,2393.6,4.25208]
[1726241939639,3.2078,2394.8,2394.7,0.41752]
[1726241939939,3.2078,2395.2,2395.1,0.41745]
[1726241940746,3.2078,2395.2,2394.2,7.34083]
[1726241940951,3.2078,2395.2,2395.1,0.41745]
[1726241941257,3.2078,2395.2,2394.7,8.7179518]
[1726241941547,3.2078,2395.8,2394.5,14.28427128]
[1726241941738,3.2078,2396.1,2395.0,3.2078]
[1726241942047,40.8,2397.1,2395.2,0.41743]
[1726241942048,7.6978,2395.3,2395.2,0.41743]
[1726241942747,3.2078,2395.3,2394.6,10.89527183]
[1726241943048,3.2078,2395.0,2394.9,0.41749]
[1726241943347,3.2078,2395.0,2394.6,7.24267183]
[1726241943547,0.41755,2394.6,2393.2,6.2853]
[1726241943739,5.1794,2394.9,2393.2,6.2853]
[1726241943740,3.2078,2394.1,2393.9,0.41765]
[1726241943946,3.2078,2394.0,2393.2,14.95241291]
[1726241944143,3.2078,2394.0,2393.2,6.2853]
[1726241944347,3.2078,2393.7,2393.6,0.41771]
[1726241944545,3.2078,2394.3,2393.4,8.66711291]
[1726241944850,3.2078,2394.4,2393.6,8.95794421]
[1726241945147,3.2078,2394.4,2393.0,1.04455]
[1726241945148,7.6978,2393.7,2392.5,1.04475]
[1726241945348,4.49,2392.6,2391.5,4.1861]
[1726241945543,3.2078,2392.8,2391.9,3.2078]
[1726241945938,3.2078,2392.7,2392.6,0.41788]
[1726241946143,3.2078,2392.7,2392.0,8.68475413]
[1726241946437,4.49,2393.0,2391.5,0.9783]
[1726241946438,3.2078,2392.4,2391.6,8.68475413]
[1726241946644,3.2078,2392.6,2392.3,0.41793]
[1726241946846,3.2078,2392.6,2391.9,8.68605522]
[1726241947143,4.49,2393.0,2391.6,8.68605522]
[1726241947144,3.2078,2393.0,2392.3,3.2078]
[1726241947345,3.2078,2392.7,2392.2,8.68605522]
[1726241947548,3.2078,2392.4,2392.3,0.41794]
[1726241948143,3.2078,2392.8,2392.7,0.41787]
[1726241948637,3.2078,2393.5,2392.7,10.1792]
[1726241948847,3.2078,2393.5,2392.7,0.9943]
[1726241949045,3.2078,2393.2,2393.1,0.4178]
[1726241949241,3.2078,2393.2,2392.2,1.04487]
[1726241949242,3.2078,2393.2,2392.0,3.2078]
[1726241949550,4.49,2392.9,2392.3,8.74782276]
[1726241949750,4.67053,2392.4,2392.3,7.48843276]
[1726241950050,11.8778,2392.4,2391.2,1.04533]
[1726241950253,3.2078,2392.0,2391.9,0.41801]
[1726241950450,3.2078,2392.0,2391.9,4.59881]
[1726241950747,3.2078,2392.6,2392.5,0.4179]
[1726241950947,4.49,2392.7,2392.5,0.41791]
[1726241951152,1.04422,2393.8,2392.5,0.41791]
[1726241951153,3.2078,2392.6,2392.5,0.41791]
[1726241951541,3.2078,2392.6,2391.9,2.1202]
[1726241951739,3.2078,2392.6,2392.5,0.41791]
[1726241951939,3.2078,2392.6,2391.9,6.3002]
[1726241952143,3.2078,2392.6,2392.5,0.41791]
[1726241952750,3.2078,2392.6,2390.4,3.2078]
[1726241952751,22.3678,2392.6,2390.4,3.2078]
[1726241953051,3.2078,2392.0,2391.8,4.59802]
[1726241953250,3.2078,2392.0,2391.9,4.18]
[1726241953547,4.49,2392.1,2392.0,0.41799]
[1726241953749,4.49,2392.1,2391.9,4.18]
[1726241953750,3.2078,2392.1,2391.9,4.18]
[1726241954255,3.2078,2392.1,2392.0,0.41799]
[1726241954457,3.2078,2392.1,2392.0,4.18]
[1726241954648,3.2078,2392.1,2391.5,8.6884523]
[1726241954841,3.62579,2392.0,2391.8,4.18]
[1726241955047,3.2078,2392.0,2391.5,4.18]
[1726241955347,0.41818,2391.0,2390.0,3.6198]
[1726241955546,3.2078,2391.0,2390.7,4.18]
[1726241955752,0.41821,2390.8,2390.3,4.18]
[1726241955947,3.2078,2390.7,2390.6,0.41824]
[1726241956147,3.2078,2390.7,2390.2,3.2078]
[1726241956347,3.2078,2390.4,2390.2,4.18]
[1726241956548,3.2078,2390.4,2390.0,0.2]
[1726241956747,4.49,2390.5,2390.4,0.41827]
[1726241957046,3.2078,2391.1,2390.7,0.41821]
[1726241957249,0.41812,2391.3,2390.7,4.18]
[1726241957250,3.2078,2390.8,2390.7,4.18]
[1726241957446,3.2078,2390.8,2390.1,3.2078]
[1726241957447,7.6978,2390.8,2390.1,3.2078]
[1726241957652,7.6978,2390.8,2390.7,4.18]
[1726241957856,3.2078,2390.8,2390.7,4.18]
[1726241958058,7.6978,2391.1,2390.7,4.18]
[1726241958257,4.49,2391.1,2391.0,5.22543]
[1726241958554,3.2078,2392.1,2392.0,0.41799]
[1726241958756,4.49,2392.4,2392.1,1.39016]
[1726241958969,4.49,2392.4,2391.5,1.04517]
[1726241958970,3.2078,2393.3,2392.0,3.2078]
[1726241959153,3.2078,2393.3,2392.3,3.2078]
[1726241959551,3.2078,2393.0,2392.5,0.41789]
[1726241959755,3.2078,2393.0,2392.1,2.0871]
[1726241959963,3.2078,2393.0,2392.4,1.04481]
[1726241960257,3.2078,2393.0,2392.9,0.41784]
[1726241960464,1.04409,2394.1,2392.1,2.0871]
[1726241960465,7.6978,2393.8,2392.7,3.2078]
[1726241960653,20.85809,2396.8,2392.1,1.0571]
[1726241960654,3.2078,2393.0,2392.5,3.2078]
[1726241960852,3.2078,2393.0,2392.3,1.04486]
[1726241961048,3.2078,2393.0,2392.2,3.2078]
[1726241961258,3.2078,2393.0,2392.5,0.4179]
[1726241961259,3.62562,2393.0,2392.5,0.4179]
[1726241961454,4.1792,2392.9,2392.1,4.2649]
[1726241961659,3.62563,2393.0,2392.2,0.41796]
[1726241961859,3.2078,2393.0,2392.2,1.0449]
[1726241962161,3.2078,2393.0,2392.1,4.2649]
[1726241962360,3.2078,2392.7,2392.6,0.41789]
[1726241962559,3.2078,2393.0,2392.8,0.41785]
[1726241962760,3.2078,2393.0,2392.4,1.04481]
[1726241962970,3.2078,2393.0,2392.9,0.41784]
[1726241963154,1.04404,2394.2,2393.6,0.41771]
[1726241963155,3.2078,2393.7,2393.6,0.41771]
[1726241963462,9.2078,2393.7,2393.3,0.41776]
[1726241963671,4.49,2393.8,2393.0,1.04455]
[1726241963960,3.2078,2394.0,2392.8,4.25243]
[1726241964262,3.2078,2393.7,2393.4,0.41775]
[1726241964471,3.2078,2393.7,2393.6,0.41771]
[1726241964962,3.2078,2393.7,2393.6,7.462]
[1726241965161,3.2078,2394.9,2393.8,1.04419]
[1726241965361,4.49,2395.2,2394.4,0.41757]
[1726241965362,7.06629,2394.5,2394.4,0.41757]
[1726241965563,8.66159,2394.6,2394.5,0.41756]
[1726241965762,4.49,2395.6,2394.3,1.04394]
[1726241966070,2.08565,2397.0,2394.8,0.4175]
[1726241966071,7.06629,2394.9,2394.8,0.4175]
[1726241966669,7.06629,2394.9,2394.8,3.6253]
[1726241967056,7.06629,2394.9,2394.8,0.4175]
[1726241967563,7.06629,2394.9,2394.3,1.0169]
[1726241967564,3.2078,2395.4,2394.9,0.41748]
[1726241967762,1.04333,2395.9,2394.3,2.06088]
[1726241967763,7.06629,2395.1,2395.0,0.41747]
[1726241968161,3.2078,2395.7,2395.4,0.4174]
[1726241968463,7.06629,2395.4,2395.3,0.41742]
[1726241968663,6.23091,2397.9,2395.6,0.41735]
[1726241968664,3.2078,2395.7,2395.6,0.41735]
[1726241968865,7.06629,2395.6,2395.0,3.2078]
[1726241969069,3.2078,2395.7,2395.0,3.62527]
[1726241969070,7.06629,2395.1,2395.0,3.62527]
[1726241969273,7.06629,2395.3,2395.2,0.41742]
[1726241969456,7.06629,2395.4,2395.2,0.41743]
[1726241969655,7.06629,2395.4,2395.1,0.41744]
[1726241969866,7.06629,2395.4,2395.3,0.41742]
[1726241970162,3.2078,2396.1,2395.0,9.2078]
[1726241970365,7.06629,2395.8,2395.7,0.41734]
[1726241970565,7.06629,2395.8,2395.7,0.41735]
[1726241970768,7.06629,2395.8,2395.1,3.2078]
[1726241970769,10.27409,2395.8,2395.1,3.2078]
[1726241971167,7.06629,2395.6,2395.1,4.25143]
[1726241971371,7.06629,2395.6,2395.5,0.41738]
[1726241971664,7.06629,2395.5,2395.4,0.4174]
[1726241971967,7.06629,2395.6,2395.5,0.41737]
[1726241972269,7.06629,2395.5,2395.1,3.2078]
[1726241972465,7.06629,2395.5,2395.4,0.4174]
[1726241972664,3.2078,2395.8,2395.3,0.41741]
[1726241972868,3.2078,2395.8,2395.5,0.41738]
[1726241973066,7.06629,2395.6,2395.1,3.2078]
[1726241973365,1.04364,2395.1,2394.1,0.41762]
[1726241973567,1.04364,2395.1,2393.4,1.25634]
[1726241973568,3.85849,2394.2,2393.1,1.0445]
[1726241973865,3.2078,2393.7,2393.6,0.41771]
[1726241974073,7.06629,2393.7,2393.6,0.41771]
[1726241974665,7.06629,2393.7,2393.1,1.0645]
[1726241974866,3.85849,2393.6,2393.5,0.41773]
[1726241975164,3.2078,2393.7,2393.5,0.41772]
[1726241975358,7.06629,2393.7,2393.5,0.41772]
[1726241975560,3.85849,2393.6,2393.5,0.41772]
[1726241975761,3.85849,2393.6,2393.5,0.57870437]
[1726241975964,3.2078,2394.0,2393.9,0.41766]
[1726241976264,3.85849,2394.2,2393.5,0.16098437]
[1726241976665,3.85849,2394.2,2394.1,0.41763]
[1726241976862,3.2078,2394.5,2394.4,0.41757]
[1726241977262,3.2078,2394.8,2394.7,0.41752]
[1726241977464,7.06629,2394.8,2394.7,0.41752]
[1726241977664,7.06629,2394.8,2394.1,4.41281437]
[1726241977665,7.06629,2394.8,2394.6,0.41753]
[1726241977870,3.2078,2394.8,2394.7,0.16098437]
[1726241978367,7.06629,2394.8,2394.7,0.16098437]
[1726241979068,11.55629,2394.8,2394.7,0.16098437]
[1726241979267,11.55629,2394.8,2394.0,0.41764]
[1726241979268,17.8738,2394.8,2394.0,0.41764]
[1726241979479,3.69750563,2394.0,2393.9,0.41766]
[1726241979661,3.69750563,2394.4,2394.3,0.41759]
[1726241980275,3.69750563,2394.4,2393.8,1.0442]
[1726241980572,3.69750563,2394.4,2394.3,0.41759]
[1726241981071,5.22082,2394.3,2393.5,8.64273212]
[1726241981269,5.22082,2394.3,2392.5,2.08946]
[1726241981270,3.2078,2393.6,2393.1,0.4178]
[1726241981576,3.2078,2393.2,2393.1,0.4178]
[1726241981971,4.49,2394.0,2393.3,0.41776]
[1726241981972,3.2078,2393.5,2393.3,0.41776]
[1726241982271,3.2078,2393.5,2393.2,0.41777]
[1726241982474,3.2078,2393.5,2392.6,4.25249]
[1726241982677,3.2078,2393.5,2393.1,0.41779]
[1726241982976,3.2078,2393.5,2392.6,3.2078]
[1726241983470,3.2078,2393.5,2393.0,0.41782]
[1726241983471,3.2078,2393.2,2393.0,0.41782]
[1726241983671,3.2078,2393.2,2392.4,2.0462]
[1726241983873,3.2078,2393.1,2392.4,2.0462]
[1726241984467,3.2078,2393.1,2392.7,0.41786]
[1726241984671,3.2078,2392.8,2391.6,1.04513]
[1726241984873,3.2078,2392.2,2391.6,1.04516]
[1726241985080,3.2078,2392.4,2391.6,1.04516]
[1726241985267,3.2078,2392.4,2392.0,0.41798]
[1726241985668,3.2078,2392.4,2391.4,5.713]
[1726241985669,3.2078,2392.1,2391.4,5.713]
[1726241985868,3.2078,2392.1,2391.5,1.04519]
[1726241986176,4.49,2392.6,2391.4,5.713]
[1726241986177,3.2078,2391.8,2391.4,5.713]
[1726241986369,3.2078,2391.8,2391.7,0.41804]
[1726241986770,3.2078,2391.8,2391.4,5.713]
[1726241986976,3.2078,2391.8,2391.6,0.41805]
[1726241987273,3.2078,2391.8,2391.4,5.713]
[1726241987274,3.2078,2391.8,2391.5,0.41807]
[1726241987468,3.2078,2391.8,2391.4,5.713]
[1726241987664,3.2078,2391.5,2391.4,5.713]
[1726241988178,13.3894,2391.5,2391.4,4.3952]
[1726241988369,7.3894,2391.5,2391.4,4.3952]
[1726241988770,13.3894,2391.5,2391.4,4.3952]
[1726241988972,15.8979,2391.5,2391.4,0.11173]
[1726241989173,1.04538,2391.2,2389.7,3.4198]
[1726241989381,3.2078,2390.4,2390.0,0.317]
[1726241989579,3.2078,2390.4,2390.2,0.4183]
[1726241989873,3.2078,2390.4,2390.3,0.41829]
[1726241990470,13.6978,2390.4,2390.0,0.317]
[1726241990669,7.6978,2390.1,2390.0,0.317]
[1726241991069,3.2078,2390.4,2390.0,0.317]
[1726241992267,3.2078,2390.4,2390.3,0.41829]
[1726241992579,3.2078,2391.3,2391.0,0.41816]
[1726241992972,3.2078,2391.3,2390.8,0.117]
[1726241993175,3.2078,2391.7,2390.8,3.3248]
[1726241993372,4.90799,2392.1,2390.8,3.3248]
[1726241993373,3.2078,2392.0,2391.0,1.04542]
[1726241993581,3.2078,2392.0,2391.1,3.2078]
[1726241993881,7.6978,2391.2,2390.9,0.117]
[1726241994179,4.1824,2391.1,2390.9,0.117]
[1726241994373,10.1824,2391.1,2390.9,0.117]
[1726241994570,4.1824,2391.0,2390.9,0.117]
[1726241994973,10.60057,2391.0,2390.9,0.117]
[1726241995172,4.1824,2391.0,2390.9,0.117]
[1726241995574,4.1824,2391.0,2390.9,0.53518]
[1726241995774,4.1824,2391.0,2390.9,0.117]
[1726241996080,3.2078,2391.2,2391.0,0.41816]
[1726241996271,3.2078,2391.2,2391.1,0.41815]
[1726241997782,3.2078,2391.2,2391.1,4.60055]
[1726241997985,3.2078,2391.2,2391.1,0.41815]
[1726241998285,3.2078,2391.2,2390.9,0.117]
[1726241998681,3.2078,2391.2,2390.4,0.117]
[1726241999087,3.2078,2391.2,2390.7,0.41821]
[1726241999386,3.2078,2391.2,2390.7,0.41822]
[1726241999387,3.2078,2390.9,2390.7,0.41822]
[1726241999584,3.2078,2390.9,2390.8,0.4182]
[1726241999786,7.3902,2390.9,2390.8,0.4182]
[1726241999980,7.3902,2390.9,2390.7,0.41821]
[1726242000174,3.2078,2391.3,2390.6,3.2078]
[1726242000375,3.2078,2391.3,2391.2,0.41813]
[1726242000986,3.2078,2391.7,2391.6,0.41806]
[1726242001187,3.2078,2391.7,2391.5,0.41807]
[1726242001587,3.2078,2391.7,2391.6,0.41806]
[1726242001987,3.2078,2391.7,2391.5,0.41807]
[1726242002182,3.2078,2391.7,2391.6,0.41806]
[1726242002387,3.2078,2392.0,2391.4,1.04522]
[1726242002681,3.2078,2393.1,2392.9,0.41783]
[1726242002881,3.2078,2393.1,2392.2,1.04489]
[1726242003087,3.2078,2393.4,2392.5,3.2078]
[1726242003288,3.2078,2393.6,2392.6,1.04473]
[1726242003482,3.2078,2393.6,2392.6,4.2525]
[1726242003684,3.2078,2393.3,2393.1,0.4178]
[1726242003884,3.2078,2393.3,2392.3,4.25263]
[1726242004196,3.2078,2393.3,2392.6,3.2078]
[1726242004395,4.49,2393.4,2392.8,0.41785]
[1726242004599,4.49,2393.4,2393.0,0.41781]
[1726242004787,4.49,2393.4,2392.6,3.2078]
[1726242005092,4.49,2393.4,2393.0,0.41781]
[1726242005292,3.2078,2393.3,2393.0,0.41781]
[1726242005494,3.2078,2393.3,2393.1,0.4178]
[1726242005698,3.2078,2393.3,2393.0,0.41781]
[1726242006094,3.2078,2393.3,2393.2,0.41778]
[1726242006284,3.2078,2393.3,2393.1,0.41779]
[1726242006595,3.2078,2393.3,2392.5,3.2078]
[1726242006891,2.0389,2394.2,2392.1,2.0165]
[1726242006892,3.2078,2393.0,2392.1,2.0165]
[1726242007100,3.2078,2393.0,2392.8,0.41784]
[1726242007285,3.2078,2393.0,2392.9,0.41784]
[1726242007484,3.2078,2393.0,2392.9,4.59704]
[1726242007686,3.2078,2393.0,2392.9,0.41784]
[1726242008303,3.2078,2393.4,2393.3,0.41777]
[1726242008592,3.2078,2394.0,2393.7,0.41768]
[1726242008900,3.2078,2394.3,2393.7,0.41768]
[1726242009096,4.49,2393.8,2393.0,1.0229]
[1726242009286,3.2078,2393.3,2392.3,1.0074]
[1726242009488,3.2078,2393.3,2392.8,0.41784]
[1726242009890,3.2078,2393.3,2392.9,0.41783]
[1726242010091,3.2078,2393.3,2393.0,0.41781]
[1726242010287,3.2078,2393.3,2392.9,0.41783]
[1726242010499,3.2078,2393.7,2393.2,0.41778]
[1726242010690,3.2078,2393.7,2392.6,3.2078]
[1726242010893,3.2078,2393.7,2393.2,0.41778]
[1726242011193,3.2078,2393.7,2393.3,0.41776]
[1726242011897,4.49,2393.8,2393.3,0.41776]
[1726242011898,3.2078,2393.4,2393.3,0.41776]
[1726242012106,3.2078,2393.4,2393.1,0.41779]
[1726242012287,3.2078,2393.4,2392.3,6.30194]
[1726242012288,3.2078,2393.4,2392.3,5.2571]
[1726242012495,3.2078,2393.4,2393.1,0.4178]
[1726242012690,3.2078,2393.4,2392.3,5.2571]
[1726242012691,3.2078,2393.4,2393.3,0.41777]
[1726242012891,2.10744812,2395.8,2393.8,0.41767]
[1726242012892,4.49,2394.5,2393.8,0.41767]
[1726242013198,3.2078,2394.0,2392.7,5.50433184]
[1726242013395,1.04395,2394.4,2393.0,0.41781]
[1726242013396,4.49,2393.5,2393.0,0.41781]
[1726242013590,3.2078,2393.3,2392.5,8.98357594]
[1726242013908,3.2078,2393.3,2393.1,0.41779]
[1726242014195,3.2078,2393.3,2392.6,8.7589954]
[1726242014398,3.2078,2393.3,2392.8,0.41785]
[1726242014704,3.2078,2393.3,2392.6,1.04473]
[1726242014890,3.2078,2393.3,2392.5,3.2078]
[1726242015197,3.2078,2393.6,2393.5,0.41772]
[1726242015396,3.2078,2394.1,2393.2,3.2078]
[1726242015587,3.2078,2394.1,2393.3,1.04441]
[1726242015794,3.2078,2394.1,2394.0,0.41764]
[1726242016297,3.2078,2394.1,2394.0,4.59444]
[1726242016497,2.0246,2394.9,2394.0,4.59444]
[1726242016498,3.2078,2394.6,2394.3,0.41758]
[1726242016704,3.2078,2394.6,2393.9,1.04416]
[1726242016892,3.2078,2394.6,2393.9,6.19316]
[1726242017092,0.9931,2395.6,2394.5,0.41756]
[1726242017093,7.6978,2395.2,2394.5,0.41756]
[1726242017399,3.2078,2394.6,2394.0,1.045]
[1726242017700,3.2078,2394.6,2394.1,0.41762]
[1726242017901,3.2078,2394.6,2394.0,1.045]
[1726242018403,3.2078,2394.6,2394.4,0.41757]
[1726242018591,4.49,2394.8,2394.4,0.41756]
[1726242018904,4.49,2394.8,2394.4,0.41757]
[1726242018905,3.2078,2394.7,2394.4,0.41757]
[1726242019309,3.2078,2394.7,2394.0,4.2528]
[1726242019605,4.49,2394.8,2394.7,0.41752]
[1726242020302,5.53333,2395.9,2394.7,0.41752]
[1726242020303,4.49,2395.2,2395.1,0.41745]
[1726242020495,3.2078,2395.3,2395.0,0.41746]
[1726242020693,3.2078,2395.3,2394.3,4.25175]
[1726242020694,7.6978,2395.6,2395.1,0.41744]
[1726242020901,7.6978,2395.6,2394.4,1.04394]
[1726242020902,7.6978,2395.6,2395.0,0.41745]
[1726242021101,7.6978,2395.6,2395.1,0.41744]
[1726242021302,7.6978,2395.6,2394.6,3.2078]
[1726242021817,7.6978,2395.6,2395.3,0.41741]
[1726242021992,7.6978,2395.6,2394.6,3.2078]
[1726242021993,3.2078,2395.6,2394.7,1.04381]
[1726242022197,4.49,2395.9,2394.4,0.21025499]
[1726242022198,3.2078,2395.1,2394.9,0.997]
[1726242022503,3.2078,2395.1,2394.9,1.41448]
[1726242022692,4.49,2395.5,2395.2,0.41743]
[1726242022693,3.2078,2395.4,2395.2,0.41743]
[1726242022901,3.2078,2395.4,2394.9,0.997]
[1726242023198,2.0272,2396.5,2395.2,3.2078]
[1726242023199,3.2078,2395.8,2395.2,3.2078]
[1726242023400,4.49,2396.2,2395.5,3.2078]
[1726242023601,8.7278,2396.5,2395.8,3.2078]
[1726242023899,7.6978,2396.5,2395.7,3.2078]
[1726242024506,3.2078,2396.5,2396.0,3.2078]
[1726242024704,4.49,2396.8,2396.3,0.41723]
[1726242024895,4.49,2396.8,2396.4,0.41722]
[1726242025198,4.49,2397.2,2396.3,3.2078]
[1726242025401,4.49,2397.2,2397.0,0.41711]
[1726242025601,4.49,2397.2,2396.4,3.2078]
[1726242025602,7.6978,2397.5,2396.5,3.2078]
[1726242025900,3.2078,2396.9,2396.2,3.2078]
[1726242026102,4.49,2397.1,2396.5,0.41721]
[1726242026304,4.49,2397.1,2396.6,0.41718]
[1726242026504,4.49,2397.5,2396.5,3.2078]
[1726242026897,4.49,2397.5,2396.6,0.41718]
[1726242026898,4.90704,2397.5,2396.6,0.41718]
[1726242027103,3.2078,2397.0,2396.3,3.2078]
[1726242027302,3.2078,2397.0,2396.2,3.2078]
[1726242027508,4.49,2397.2,2396.6,0.41718]
[1726242027706,4.49,2397.2,2396.5,3.2078]
[1726242027899,3.2078,2397.3,2396.5,3.2078]
[1726242028497,3.2078,2397.3,2396.9,3.22547293]
[1726242028698,3.2078,2397.3,2397.1,0.4171]
[1726242028900,6.5211,2397.9,2396.9,0.01767293]
[1726242028901,3.2078,2397.6,2396.9,0.01767293]
[1726242029106,6.5211,2397.9,2396.9,0.01767293]
[1726242029107,3.2078,2397.3,2396.9,0.01767293]
[1726242029499,3.2078,2397.3,2397.1,0.01767293]
[1726242029709,4.49,2397.4,2397.1,0.01767293]
[1726242030215,3.2078,2397.6,2397.1,0.01767293]
[1726242030399,3.2078,2397.3,2397.1,0.01767293]
[1726242030607,3.2078,2397.3,2397.2,0.01767293]
[1726242030802,3.62487,2397.3,2397.2,0.01767293]
[1726242031002,7.79607,2397.3,2397.2,0.01767293]
[1726242031619,13.79607,2397.3,2397.2,0.01767293]
[1726242031810,7.379,2397.3,2397.2,0.01767293]
[1726242032006,3.2078,2397.3,2397.2,0.01767293]
[1726242032201,2.0311,2397.9,2397.4,0.41704]
[1726242032408,3.2078,2397.7,2397.2,0.01767293]
[1726242032610,1.0168,2397.9,2397.4,0.43471293]
[1726242032611,5.5068,2397.9,2397.4,0.43471293]
[1726242033104,5.5068,2397.9,2397.4,0.01767293]
[1726242033305,5.5068,2397.9,2397.4,3.22547293]
[1726242033306,1.0168,2397.9,2397.4,3.22547293]
[1726242033505,3.2078,2398.0,2397.6,0.01767293]
[1726242033704,3.2078,2398.0,2397.7,0.41699]
[1726242033914,3.2078,2398.0,2397.6,0.01767293]
[1726242034705,3.62475,2398.0,2397.8,0.01767293]
[1726242034920,4.58736,2397.9,2397.8,0.01767293]
[1726242035218,0.41711,2397.1,2396.3,0.41723]
[1726242035417,3.2078,2396.4,2395.6,3.2078]
[1726242035614,3.2078,2396.4,2395.8,3.2078]
[1726242035912,3.2078,2396.4,2395.7,8.85759406]
[1726242036123,3.2078,2396.3,2395.5,9.67060255]
[1726242036418,3.2078,2396.3,2395.5,1.0245]
[1726242036617,3.2078,2396.3,2395.3,1.0229]
[1726242036618,3.2078,2396.0,2395.3,1.0229]
[1726242036807,3.2078,2396.0,2395.2,3.2078]
[1726242037008,1.04308,2396.4,2395.2,3.62523]
[1726242037009,3.2078,2395.7,2395.2,3.62523]
[1726242037209,3.2078,2396.1,2395.2,7.3822]
[1726242037419,3.2078,2396.1,2395.3,1.04354]
[1726242037614,3.2078,2396.1,2395.6,3.2078]
[1726242037817,3.2078,2396.1,2395.9,0.41731]
[1726242038009,3.2078,2396.3,2396.0,4.1736]
[1726242038215,3.2078,2396.7,2395.9,3.2078]
[1726242038610,3.2078,2396.7,2395.9,4.25108]
[1726242038812,3.2078,2396.7,2396.5,0.41721]
[1726242039221,3.2078,2396.7,2396.2,3.2078]